Cogmind - Beta 16 @@@ ROGUE MODE // 2025.12.18 @ 13:24:14 Player: Red Box Result: Self-destructed Performance ------------- Evolutions (6) 3000 Regions Visited (14) 2800 Robots Destroyed (195) 975 Value Destroyed (9084) 9084 Prototype IDs (43) 860 Alien Tech Used (0) 0 Bonus (6846) 6846 TOTAL SCORE: 23565 Bonus ------- High Alert Combat Kills 1647 Follower Combat Kills 2361 Entered Garrisons 200 Used RIF Installer 500 Network Hubs Disabled 400 Registered with UFD 300 Met Optimus in HQ 500 Built Enhanced Grunts 300 A7 Reached Mainframe 300 Met R17 at Cetus 500 Friendly Fire -162 Cogmind --------- Core Integrity 906/1150 Matter 244/300 Energy 100/100 System Corruption 5% Temperature Danger (447) Movement Core (700) Ox13 Location -4/Factory Parts ------- > --- POWER (1) -------- (None) > --- PROPULSION (2) --- (None) > --- UTILITY (13) ----- Advanced Cryofiber Web Large Storage Unit Experimental Signal Interpreter Advanced Target Analyzer Core Analyzer Graphene Brace Improved Hacking Suite Relay Coupler [Sentry] (37) Relay Coupler [Hunter] (16) > --- WEAPON (3) ------- Matter Neutralizer Matter Neutralizer > --- INVENTORY (15) --- Light Particle Reactor Centrium Heavy Treads Armored Huge Wheel Combat Linear Gravjet High-capacity Matter Pod (130) Advanced Thermal Shield Advanced Hardlight Generator Authchip [Device] HERF Cannon Matter Neutralizer Enhanced Nova Cannon Gamma Bomb Array Improved Remote Datajack Peak State ------------ > --- POWER ------------ Neutrino Core Quantum Reactor Quantum Reactor > --- PROPULSION ------- Centrium Heavy Treads > --- UTILITY ---------- Advanced Coolant Injector High-capacity Storage Unit Experimental Sensor Array Experimental Signal Interpreter Core Analyzer Centrium Medium Armor Plating Experimental Thermal Shield Remote Force Field Improved Hacking Suite Improved Hacking Suite Power Bank > --- WEAPON ----------- Advanced KE Penetrator Advanced KE Penetrator Advanced KE Penetrator > --- INVENTORY -------- Quantum Reactor Quantum Reactor Centrium Heavy Treads Centrium Heavy Treads Advanced Energy Well Matter Compressor Deep Structural Scanner Improved Kinecellerator Centrium Medium Armor Plating Centrium Medium Armor Plating Medium Insulated Plating Improved Recalibrator Advanced Variable Charge Gun Advanced Variable Charge Gun Advanced Variable Charge Gun Heavy Rocket Launcher Junk Cannon [Rating: 152] Favorites ----------- Power Quantum Reactor Engine Deuterium Engine Power Core Neutrino Core Reactor Quantum Reactor Propulsion Wheel Treads Centrium Heavy Treads Leg Aluminum Leg Wheel Wheel Hover Unit Combat Linear Gravjet Utility Improved Hacking Suite Device Advanced Heat Sink Storage High-capacity Storage Unit Processor Core Analyzer Hackware Improved Hacking Suite Protection Centrium Medium Armor Plating Weapon Junk Cannon Energy Gun Advanced Variable Charge Gun Energy Cannon Particle Cannon Ballistic Gun Advanced KE Penetrator Ballistic Cannon Magnetic Acceleration Cannon Launcher Mini Smartbomb Launcher Special Weapon Junk Cannon Impact Weapon Power Maul Build | -11 -10 -10 -10 -9 -6 -6 -6 -6 -6 -5 -5 -4 -4 -4 ------- Run | Yrd Mat Min Sub Scr Fac Ext Cet Arc Hub Fac Gar Fac Was Fac Slots Evolved 12 | . . . . . 8 . . . . 2 . 2 . . Power . | . . . . . . . . . . . . . . . Propulsion . | . . . . . . . . . . . . . . . Utility 11 | . . . . . 7 . . . . 2 . 2 . . Weapon 1 | . . . . . 1 . . . . . . . . . Parts Attached 173 | 8 8 9 11 3 32 10 10 5 11 19 24 1 8 14 Power 22 | 1 2 2 . 1 2 2 4 . . 1 5 . 1 1 Engine 11 | 1 2 2 . 1 2 . . . . . 3 . . . Core 3 | . . . . . . 2 1 . . . . . . . Reactor 8 | . . . . . . . 3 . . 1 2 . 1 1 Propulsion 18 | 2 2 . 4 1 2 . 1 . 2 . 3 . 1 . Treads 11 | . 1 . 2 . 2 . 1 . 2 . 3 . . . Leg 2 | 2 . . . . . . . . . . . . . . Wheel 4 | . 1 . 2 1 . . . . . . . . . . Hover 1 | . . . . . . . . . . . . . 1 . Flight . | . . . . . . . . . . . . . . . Utility 76 | 2 1 3 3 . 19 4 3 4 4 11 9 1 5 7 Device 40 | 1 . 2 . . 9 2 2 3 2 7 5 1 1 5 Storage 6 | 1 1 . 1 . . . . . 1 1 . . . 1 Processor 7 | . . . . . 4 1 . . . . . . 2 . Hackware 7 | . . . . . 2 1 . . 1 . 1 . 2 . Protection 16 | . . 1 2 . 4 . 1 1 . 3 3 . . 1 Artifact . | . . . . . . . . . . . . . . . Weapon 57 | 3 3 4 4 1 9 4 2 1 5 7 7 . 1 6 Energy Gun 15 | 2 1 . 1 . 5 . 1 . 2 . 3 . . . Energy Cannon 12 | . . 2 2 . 1 1 . . . 1 . . . 5 Ballistic Gun 10 | 1 . . . . 1 . 1 1 2 3 1 . . . Ballistic Cannon 7 | . . . . . 1 2 . . 1 1 1 . . 1 Launcher 6 | . . 2 . . . 1 . . . 1 1 . 1 . Special Weapon 3 | . 1 . . 1 . . . . . . 1 . . . Impact Weapon 4 | . 1 . 1 . 1 . . . . 1 . . . . Slashing Weapon . | . . . . . . . . . . . . . . . Piercing Weapon . | . . . . . . . . . . . . . . . Special Melee Weapon . | . . . . . . . . . . . . . . . Unidentified Prototypes 13 | . . 1 . 1 2 . 4 . 2 3 . . . . Corrupted Parts 10 | . . . . . . . 4 . 6 . . . . . System Corruption 70 | . . . . . . . 23 . 47 . . . . . Parts Lost 45 | . . 2 1 . 4 3 1 . . 14 6 . 7 7 Power 9 | . . 1 . . . . . . . 5 1 . 1 1 Propulsion 3 | . . . . . . . . . . 1 1 . . 1 Utility 22 | . . . 1 . 4 3 . . . 5 3 . 3 3 Weapon 11 | . . 1 . . . . 1 . . 3 1 . 3 2 Highest Loss Streak 7 | . . 1 1 . 1 2 1 . . 4 2 . 7 6 To Critical Strikes 4 | . . . . . . . . . . 4 . . . . Average Backups 18 | 5 9 16 20 22 22 17 16 17 17 17 18 17 8 9 Power 1 | . . . 2 1 1 1 1 2 2 1 . . . . Propulsion 1 | 3 2 1 2 1 1 . 1 2 2 2 1 1 1 2 Utility 8 | . 2 8 8 10 11 9 7 7 7 7 7 8 3 2 Weapon 6 | 1 4 5 6 8 7 5 5 6 6 6 8 7 3 2 Tool/Special . | . . . . . . . . . . . . . . . Unused Backups 83 | . 2 1 4 12 10 5 9 . 2 15 8 . 7 8 Power 9 | . . . . 4 . 2 1 . . 1 1 . . . Propulsion 10 | . 1 . . 1 1 . 2 . . 2 . . 1 2 Utility 30 | . . 1 1 2 3 2 4 . 2 6 3 . 4 2 Weapon 33 | . 1 . 3 5 5 1 2 . . 6 4 . 2 4 Tool/Special 1 | . . . . . 1 . . . . . . . . . Average Slot Usage (%) 90 | . 99 95 95 81 84 94 97 87 87 89 93 93 70 88 Engine 5 | . 14 9 14 14 6 . . . . . 2 . . . Core 1 | . . . . . . 5 5 5 5 3 . . . . Reactor 3 | . . . . . . . 2 11 11 8 2 5 4 5 Treads 7 | . 3 14 14 12 6 6 5 5 5 5 5 5 2 4 Leg 1 | . 20 . . . . . . . . . . . . . Wheel 5 | . 3 14 14 15 6 6 5 . . . . . . . Device 14 | . 14 13 3 . 14 16 19 17 11 24 26 30 18 20 Storage 8 | . 14 14 13 14 6 6 5 5 5 5 5 5 1 3 Processor 7 | . . . . . 12 14 12 11 11 10 11 10 18 20 Hackware 4 | . . . . . 4 6 5 5 10 10 7 10 11 15 Protection 7 | . . . 6 . 12 13 12 10 11 6 10 10 2 2 Energy Gun 4 | . 24 16 . . 1 7 8 2 1 1 9 10 2 . Energy Cannon 7 | . . 11 26 20 3 1 . . . . 1 . . 10 Ballistic Gun 1 | . 2 . . . . . 1 2 3 6 3 5 . . Special Weapon 2 | . . . . 3 5 2 . 5 5 2 . . 2 . Peak Build Rating 152 | 9 11 18 21 30 77 78 122 127 131 152 123 129 133 128 Average Rating 74 | 5 10 12 16 22 69 73 84 125 124 134 115 128 93 120 On Entrance 69 | . 9 11 13 19 30 77 74 122 126 124 105 120 129 86 Avg Prop Armor Cover (%) 9 | . 11 11 10 11 5 6 6 . . . . . 35 . Naked Turns . | . . . . . . . . . . . . . . . Heaviest Build 149 | 13 50 56 65 65 94 113 149 149 134 141 94 93 93 95 Greatest Support 80 | 20 20 10 10 20 10 10 80 80 80 80 80 70 70 70 Greatest Overweight (x) 14 | . 4 5 6 6 9 11 14 1 1 1 1 1 1 1 Average Overweight (x) 4 | . 1 4 5 5 7 10 8 1 1 . . 1 . . Largest Inventory Capacity 25 | 8 20 20 25 25 25 25 20 20 20 20 20 20 20 15 Average Capacity 20 | 7 14 20 21 25 24 20 20 20 20 20 20 20 9 12 Most Carried 25 | 7 16 20 25 25 25 25 20 20 20 20 20 19 20 15 Average Carried 19 | 5 9 16 21 23 24 20 19 19 19 19 19 18 9 11 Final Capacity 25 | 8 20 20 25 25 25 20 20 20 20 20 20 20 5 15 Final Carried 25 | 7 13 20 25 25 25 20 20 20 20 20 20 19 5 15 Class Distribution -------------------- 38% | Mutant 31% | Scavenger-Tank 15% | Tank 9% | Commander-Tank Dominant Class ---------------- Mutant | -10/Materials Mutant | -10/Mines Mutant | -10/Subcaves Mutant | -9/Scraptown Tank | -6/Factory Commander-Tank | -6/Extension Commander-Tank | -6/Cetus Scavenger-Tank | -6/Archives Scavenger-Tank | -6/Hub_04(d) Scavenger-Tank | -5/Factory Scavenger-Tank | -5/Garrison Bothacker-Tank | -4/Factory Mutant | -4/Waste Gunner | -4/Factory Resources | -11 -10 -10 -10 -9 -6 -6 -6 -6 -6 -5 -5 -4 -4 -4 ----------- Run | Yrd Mat Min Sub Scr Fac Ext Cet Arc Hub Fac Gar Fac Was Fac Matter Collected 7227 | 274 362 117 306 69 787 622 288 255 383 1757 1137 . 268 602 Remotely . | . . . . . . . . . . . . . . . Salvage Created 9097 | 63 412 148 151 . 1393 1341 349 271 490 1704 1680 . 364 731 Parts 370 | 7 27 8 7 . 58 50 17 14 21 66 68 . 1 26 Haulers Intercepted 3 | . 1 . . . . . . . 1 1 . . . . Recyclers Shooed 7 | . 1 . . . 2 1 . . . 1 . . . 2 Parts Field Recycled . | . . . . . . . . . . . . . . . Retrieved Matter . | . . . . . . . . . . . . . . . Parts Self-Destructed 14 | . . . 14 . . . . . . . . . . . Prevented . | . . . . . . . . . . . . . . . Parts Restored 1 | . . . . . . . . . . 1 . . . . Broken 1 | . . . . . . . . . . 1 . . . . Kills | -11 -10 -10 -10 -9 -6 -6 -6 -6 -6 -5 -5 -4 -4 -4 ------- Run | Yrd Mat Min Sub Scr Fac Ext Cet Arc Hub Fac Gar Fac Was Fac Combat Hostiles Destroyed 145 | . 10 8 3 . 24 22 5 . 4 35 22 . 2 10 Guns 43 | . 10 1 . . 4 7 . . . 12 9 . . . Cannons 50 | . . 3 3 . 16 6 2 . 1 4 6 . . 9 AOE 29 | . . 4 . . . 1 . . 1 14 7 . 2 . Classes Destroyed 20 | 1 4 1 1 . 7 1 . 1 . 2 1 . 1 . Worker 8 | . . . . . 2 . . . 4 1 . . . 1 Builder 9 | . . . . . 1 . . . . 7 . . . 1 Tunneler 5 | 3 . 1 . . . . . . . 1 . . . . Hauler 3 | . 1 . . . . . . . 1 1 . . . . Recycler 3 | . . . . . 1 1 . . . . . . . 1 Operator 12 | . . . . . . . . 9 3 . . . . . Drone 16 | . . . . . . . . . . 13 . . . 3 Watcher 11 | . 3 . . . 4 1 . . 1 1 . . . 1 Swarmer 22 | . 6 3 . . 4 3 . . . 1 5 . . . Grunt 44 | . 4 4 . . 2 13 . . 2 9 7 . . 3 Brawler 1 | . . . . . . . . . . 1 . . . . Duelist 1 | . . . . . . . . . . . 1 . . . Sentry 12 | . . . . . 2 5 . . 1 1 3 . . . Specialist 6 | . . . . . 4 . . . . . . . . 2 Hunter 8 | . . . . . 3 . . . 1 2 2 . . . Programmer 23 | . . . . . 9 . . . . 8 4 . . 2 Behemoth 1 | . . . . . . 1 . . . . . . . . Compactor 2 | . . . . . . . . . . . . . 2 . Cetus Guard 5 | . . . . . . . 5 . . . . . . . Subdweller 3 | . . . 3 . . . . . . . . . . . Assembled 1 | . . 1 . . . . . . . . . . . . Best Kill Streak 9 | 2 3 5 1 . 4 6 3 2 9 6 6 . 2 5 Combat Bots Only 6 | . 3 4 1 . 4 6 3 . 2 5 6 . 2 3 Max Kills in Single Turn 8 | 1 1 2 1 . 1 1 1 1 8 3 5 . 1 2 Gunslinging 1 | . . . . . . . . . . 1 . . . . Exploded 5 | . . 2 . . . 1 . . 1 3 5 . 1 . Melee . | . . . . . . . . . . . . . . . Uniques/NPCs Destroyed . | . . . . . . . . . . . . . . . Combat | -11 -10 -10 -10 -9 -6 -6 -6 -6 -6 -5 -5 -4 -4 -4 -------- Run | Yrd Mat Min Sub Scr Fac Ext Cet Arc Hub Fac Gar Fac Was Fac Hostile Shots Fired 1191 | . 47 28 31 . 130 107 21 2 72 339 127 . 9 278 Missed 343 | . 16 3 5 . 42 33 6 2 36 56 23 . . 121 Hits 848 | . 31 25 26 . 88 74 15 . 36 283 104 . 9 157 Melee 13 | . . . . . . . . . . 1 3 . 9 . Projectile 835 | . 31 25 26 . 88 74 15 . 36 282 101 . . 157 AOE 3 | . . . . . . . . . . 1 . . . 2 Critical Strikes 130 | . 1 . 2 . 10 2 3 . . 94 4 . 5 9 Actively Blocked 15 | . . . . . . . . . . . 1 . 5 9 Part Disruptions 1 | . . . . . 1 . . . . . . . . . Damage Taken 12631 | . 401 236 532 . 1095 742 309 . 335 4662 1873 . 485 1961 Core 1200 | . 70 87 44 . 98 29 20 . 33 425 150 . 114 130 Absorbed by Shields 954 | . . . . . . 175 49 . 14 517 . . . 199 Reduced by Siege Mode 96 | . . . . . . . . . 3 11 27 . . 55 Ignored by Resistances 1825 | . . . . . 241 278 159 . 17 917 213 . . . Regen/Repaired (Parts) 1943 | . 31 . . . 645 . . . . 1267 . . . . Core Remaining (%) 59 | 100 . . . 19 . . . . 78 . 42 . . . Volleys Fired 639 | 3 41 20 42 . 92 55 15 80 18 103 125 . 11 34 Largest 3 | 2 2 2 2 . 3 3 3 2 2 3 3 . 1 3 Hottest 320 | 70 100 108 136 . 205 169 189 80 240 240 320 . 80 265 Shots Fired 1118 | 6 79 35 79 . 141 127 45 86 28 190 230 . 11 61 Gun 600 | 6 76 15 . . 27 52 27 74 14 131 178 . . . Cannon 387 | . . 15 77 . 73 60 18 9 6 29 39 . . 61 Launcher 44 | . . 5 2 . . 2 . . . 15 9 . 11 . Special 87 | . 3 . . . 41 13 . 3 8 15 4 . . . Kinetic 336 | 3 19 . . . 13 46 15 11 17 121 65 . . 26 Thermal 426 | 3 8 15 77 . 63 14 3 72 3 31 130 . . 7 Explosive 44 | . . 5 2 . . 2 . . . 15 9 . 11 . Electromagnetic 228 | . 52 15 . . 24 52 27 . . 8 22 . . 28 Impact 80 | . . . . . 41 13 . 3 8 15 . . . . Robot Hit Streak 29 | 5 10 8 15 . 19 10 9 5 7 10 29 . 9 7 Robot Miss Streak 14 | . 6 2 2 . 3 4 1 5 4 14 2 . . 8 Penetration Max 1 | . . . . . . 1 . . . 1 1 . . . Secondary Targets 3 | . 1 . . . . . . . . 2 . . . . Max Gunslinging Chain 1 | . 1 . . . . . . . . 1 . . . . Shots Hit Robots 597 | 5 44 19 34 . 86 80 35 44 12 70 132 . 8 28 Core Hits 302 | 3 19 10 8 . 28 36 13 20 14 64 68 . 3 16 Critical Kills 11 | . . . . . 1 1 1 . . 3 5 . . . Critical Parts Destroyed 21 | . . . . . 2 4 2 . 4 7 2 . . . Critical Strikes 52 | 1 5 . . . 5 9 4 . 4 11 9 . . 4 Burn 4 | 1 3 . . . . . . . . . . . . . Meltdown 1 | . . . . . 1 . . . . . . . . . Destroy 24 | . . . . . . 4 3 . . 8 9 . . . Blast 8 | . . . . . 2 3 . . . . . . . 3 Corrupt 5 | . 2 . . . . 1 1 . . . . . . 1 Smash 10 | . . . . . 2 1 . . 4 3 . . . . Melee Attacks 25 | . 8 . 2 . 13 . . . . 2 . . . . Impact 25 | . 8 . 2 . 13 . . . . 2 . . . . Slashing . | . . . . . . . . . . . . . . . Piercing . | . . . . . . . . . . . . . . . Sneak Attacks 2 | . 2 . . . . . . . . . . . . . Combat Hostiles . | . . . . . . . . . . . . . . . Follow-up Attacks . | . . . . . . . . . . . . . . . Damage Inflicted 27015 | 75 816 852 693 . 4253 3120 835 1618 1701 5059 4389 . 2174 1430 Guns 8285 | 75 591 90 . . 343 1064 406 1236 153 1352 2975 . . . Cannons 5961 | . . 188 693 . 1378 1107 429 154 . 323 459 . . 1230 Explosions 7887 | . 97 574 . . . 175 . . 1056 2656 955 . 2174 200 Melee 226 | . 128 . . . 98 . . . . . . . . . Ramming 3 | . . . . . . . . . . 3 . . . . Kinetic 5227 | 39 130 . . . 272 731 337 154 153 1546 1191 . . 674 Thermal 6518 | 36 147 188 693 . 1106 376 92 1236 . 463 2003 . . 178 Explosive 6105 | . . 574 . . . 175 . . . 2196 926 . 2174 60 Electromagnetic 4283 | . 411 90 . . 343 1064 406 . 1056 126 269 . . 518 Impact 4879 | . 128 . . . 2532 774 . 228 492 725 . . . . Slashing . | . . . . . . . . . . . . . . . Piercing . | . . . . . . . . . . . . . . . Highest Corruption 58 | . . . . . 1 1 24 24 58 6 9 . . 5 Average Corruption 7 | . . . . . 1 1 5 17 11 3 7 . . 3 Corruption Purged 18 | . . . . . . . . 13 . 5 . . . . Corruption Blocked 4 | . . . . . 4 . . . . . . . . . Effects 334 | . . . . . 2 21 16 103 42 47 91 . . 12 Message Errors 76 | . . . . . . 4 6 21 13 10 20 . . 2 Matter Fused 75 | . . . . . . 4 5 21 11 11 19 . . 4 Heat Flow Errors 43 | . . . . . . 2 . 13 10 7 10 . . 1 Energy Discharges 34 | . . . . . . 3 . 12 1 6 11 . . 1 Parts Rejected 2 | . . . . . . . . . . . 2 . . . Parts Fused 6 | . . . . . . 1 1 2 . . 2 . . . Data Loss (minor) 45 | . . . . . . 2 2 17 3 6 11 . . 4 Data Loss (major) 17 | . . . . . . 2 . 4 1 4 6 . . . Misfires 22 | . . . . . 1 2 2 6 3 3 5 . . . Alerts 9 | . . . . . 1 1 . 3 . . 4 . . . Misdirections 1 | . . . . . . . . 1 . . . . . . Weapon Failures 4 | . . . . . . . . 3 . . 1 . . . Overload Shots 35 | . . . . . . . . . 3 30 2 . . . Overflow Damage 2562 | . 63 9 . . 1106 154 . 41 361 652 15 . 58 103 Projectiles 2121 | . . 9 . . 1106 154 . 41 354 429 4 . . 24 Explosions 378 | . . . . . . . . . 7 223 11 . 58 79 Melee 63 | . 63 . . . . . . . . . . . . . Knockbacks 56 | . 1 . . . 15 6 . 2 . 27 3 . . 2 Impact 18 | . 1 . . . 9 3 . . . 5 . . . . Kinetic 33 | . . . . . 4 3 . 2 . 19 3 . . 2 Secondary 5 | . . . . . 2 . . . . 3 . . . . Self-Inflicted Damage 689 | . 44 . . . . . . . 67 355 58 . 67 98 Shots 12 | . 1 . . . . . . . 1 7 1 . 1 1 Rammed 2 | . . . . . 1 . . . . 1 . . . . Targets Rammed 2 | . . . . . 1 . . . . 1 . . . . Kicked . | . . . . . . . . . . . . . . . Crushed . | . . . . . . . . . . . . . . . Highest Temperature 501 | 9 213 144 72 . 183 326 134 306 460 440 334 . . 501 Average Temperature 89 | 6 54 57 25 . 44 83 53 81 109 105 62 . . 169 Received Heat Transfer 3710 | . 153 122 114 . 129 310 18 . 58 2125 423 . . 258 Effects 14 | . . . . . . 1 . . 9 3 . . . 1 Shutdowns 6 | . . . . . . . . . 4 2 . . . . Energy Bleed 3 | . . . . . . 1 . . 1 1 . . . . Interference 3 | . . . . . . . . . 3 . . . . . Short Circuit 1 | . . . . . . . . . 1 . . . . . Damage (major) 1 | . . . . . . . . . . . . . . 1 Siege Activations 9 | . . . . . . . . . 1 1 4 . . 3 Total Turns 150 | . . . . . . . . . 15 13 79 . . 43 Longest Duration 37 | . . . . . . . . . 15 13 37 . . 23 Martial Activations . | . . . . . . . . . . . . . . . Shielding Activations . | . . . . . . . . . . . . . . . Robots Disrupted 2 | . . . . . . . . . . 1 1 . . . Combat Hostiles 2 | . . . . . . . . . . 1 1 . . . Robots Corrupted 28 | . . . . . 6 8 3 1 2 6 1 . . 1 Combat Hostiles 23 | . . . . . 4 8 3 . 2 5 . . . 1 Parts Fried 55 | . 1 . . . 13 9 2 3 8 6 6 . . 7 Impact Corruptions 62 | . 1 . . . 32 8 . 2 10 9 . . . . Robots Melted 1 | . . . . . 1 . . . . . . . . . Combat Hostiles . | . . . . . . . . . . . . . . . Parts Melted 13 | . 2 1 . . 6 . . 1 . 1 2 . . . Heat Transferred 8287 | 185 470 333 1258 . 1221 444 111 1499 . 350 2329 . . 87 Parts Sabotaged 2 | . . . . . . . . . . 2 . . . . Parts Stolen . | . . . . . . . . . . . . . . . Parts Stripped . | . . . . . . . . . . . . . . . Power Chain Reactions 3 | . 2 . . . . . . . . . 1 . . . Alert | -11 -10 -10 -10 -9 -6 -6 -6 -6 -6 -5 -5 -4 -4 -4 ------- Run | Yrd Mat Min Sub Scr Fac Ext Cet Arc Hub Fac Gar Fac Was Fac Maximum Alert Level 5 | . . . . . 2 3 2 1 3 4 5 4 2 1 Low Security (%) 43 | 100 100 100 . . 41 53 22 98 4 3 . . . 91 Level 1 22 | . . . . . 43 14 75 1 47 33 . . 57 8 Level 2 16 | . . . . . 15 28 1 . 45 43 . . 42 . Level 3 5 | . . . . . . 2 . . 2 17 13 . . . Level 4 5 | . . . . . . . . . . . 29 100 . . Level 5 7 | . . . . . . . . . . . 56 . . . High Security . | . . . . . . . . . . . . . . . Max Security . | . . . . . . . . . . . . . . . Peak Influence 2632 | 10 92 84 . . 440 736 407 226 829 1158 2632 1381 510 233 Initial 1381 | . . 17 . . . 178 357 64 . 403 795 1381 474 233 Average 442 | 1 19 12 . . 210 281 263 25 384 511 1654 1353 404 107 Influence Increases 10255 | 15 409 201 45 . 1107 1421 343 283 1515 2470 1937 56 80 373 Destroy 0b10 Robot/C 3540 | . 200 140 . . 480 760 160 80 300 740 540 . . 140 Destroy 0b10 Robot/NC 360 | 15 20 5 . . 40 20 10 45 70 85 30 . . 20 Destroy Leader 628 | . 48 10 . . 168 86 . . 92 152 40 . . 32 Allied During Kill 1495 | . . . . . 5 414 157 119 385 382 33 . . . Successful Hack 570 | . 40 . . . 204 61 14 . . 160 12 56 . 23 Select Force Hacks 60 | . 60 . . . . . . . . . . . . . Disable Machine 660 | . . . . . 30 15 . 30 210 315 . . . 60 Anti-Garrison Action 1250 | . . . . . . . . . 200 . 1050 . . . Destroy Structure 1407 | . 11 16 . . 45 50 2 9 243 636 217 . 80 98 Lose Combat Pursuer 285 | . 30 30 45 . 135 15 . . 15 . 15 . . . Influence Decreases 10217 | 15 364 246 45 . 742 1147 820 445 692 2156 442 1331 1103 669 Entered New Map 3592 | . . 28 . . . 187 282 98 . 420 342 1251 883 101 Time Decay 4140 | 15 364 216 45 . 415 640 368 327 442 746 . 80 110 372 Lost Part 412 | . . 2 . . 30 30 10 . . 140 60 . 70 70 Lost Ally 866 | . . . . . 106 140 160 20 100 250 40 . 40 10 Purge Threat 1207 | . . . . . 191 150 . . 150 600 . . . 116 Squads Dispatched 49 | . 2 1 . . 19 4 . . 5 14 . . . 4 Investigation 18 | . 2 1 . . 8 2 . . 1 3 . . . 1 Extermination 16 | . . . . . 8 . . . 1 5 . . . 2 Reinforcement 10 | . . . . . 2 2 . . 3 2 . . . 1 Assault 4 | . . . . . 1 . . . . 3 . . . . Garrison 1 | . . . . . . . . . . 1 . . . . Intercept . | . . . . . . . . . . . . . . . Searches Triggered . | . . . . . . . . . . . . . . . Unchained Authorized 2 | . . . . . . . . . . 1 . . . 1 Construction Impeded 4 | . . . . . . 1 . . 1 2 . . . . Haulers Reinforced . | . . . . . . . . . . . . . . . Active Scanning Responses . | . . . . . . . . . . . . . . . Cargo Convoy Interrupts 1 | . . . . . 1 . . . . . . . . . Stealth | -11 -10 -10 -10 -9 -6 -6 -6 -6 -6 -5 -5 -4 -4 -4 --------- Run | Yrd Mat Min Sub Scr Fac Ext Cet Arc Hub Fac Gar Fac Was Fac Distress Signals 12 | . . 2 . . 1 3 2 . 1 3 . . . . Communications Jammed . | . . . . . . . . . . . . . . . Distress Signals . | . . . . . . . . . . . . . . . Times Spotted 340 | . 16 11 11 . 43 38 10 52 18 87 28 . 6 20 Peak Tracking Total 9 | . 4 4 2 . 4 6 5 2 3 9 5 . 4 5 Tactical Retreats 18 | . 2 1 3 . 9 1 . . 1 . 1 . . . Traps | -11 -10 -10 -10 -9 -6 -6 -6 -6 -6 -5 -5 -4 -4 -4 ------- Run | Yrd Mat Min Sub Scr Fac Ext Cet Arc Hub Fac Gar Fac Was Fac Traps Triggered 15 | . . . 3 . . . . . 2 2 7 1 . . Indirectly . | . . . . . . . . . . . . . . . Trap Hack Attempts . | . . . . . . . . . . . . . . . Triggered . | . . . . . . . . . . . . . . . Disarmed . | . . . . . . . . . . . . . . . Reprogrammed . | . . . . . . . . . . . . . . . Reused . | . . . . . . . . . . . . . . . Traps Extracted . | . . . . . . . . . . . . . . . Installed . | . . . . . . . . . . . . . . . Triggered . | . . . . . . . . . . . . . . . Machines | -11 -10 -10 -10 -9 -6 -6 -6 -6 -6 -5 -5 -4 -4 -4 ---------- Run | Yrd Mat Min Sub Scr Fac Ext Cet Arc Hub Fac Gar Fac Was Fac Machines Disabled 49 | . . . 1 . 2 2 . 2 14 21 3 . . 4 Max in Single Turn 14 | . . . 1 . 1 1 . . 14 4 1 . . 2 Garrison Access 4 | . . . . . 1 . . . 1 2 . . . . Garrison Relay 3 | . . . . . . . . . . . 3 . . . Network Hub 2 | . . . . . . . . . 2 . . . . . Machines Repaired . | . . . . . . . . . . . . . . . Machines Dismantled . | . . . . . . . . . . . . . . . Machines Sabotaged . | . . . . . . . . . . . . . . . Overloaded Fab Kills . | . . . . . . . . . . . . . . . Hacking | -11 -10 -10 -10 -9 -6 -6 -6 -6 -6 -5 -5 -4 -4 -4 --------- Run | Yrd Mat Min Sub Scr Fac Ext Cet Arc Hub Fac Gar Fac Was Fac Machines Accessed 98 | . 11 1 1 3 33 20 2 . 3 18 1 1 . 4 Terminals 54 | . 8 . . . 13 18 2 . 2 8 1 . . 2 Fabricators 8 | . . . . . 5 . . . . 1 . . . 2 Repair Stations 6 | . 1 . . . 3 . . . . 2 . . . . Recycling Units 14 | . 2 . . . 7 2 . . . 3 . . . . Scanalyzers 5 | . . . . . 3 . . . . 1 . 1 . . Garrison Access 6 | . . . . . 2 . . . 1 3 . . . . Total Hacks 431 | . 43 1 1 20 137 51 4 . 6 124 4 15 . 25 Successful 264 | . 29 1 1 20 73 33 2 . 2 82 1 6 . 14 Failed 163 | . 13 . . . 63 17 2 . 4 41 3 9 . 11 Catastrophic 16 | . 1 . . . 7 3 1 . 2 1 . . . 1 Database Lockouts 4 | . 1 . . . 1 1 . . . 1 . . . . Manual 203 | . 30 . . . 67 28 1 . 3 60 . . . 14 Terminals 222 | . 31 . . . 57 47 4 . 3 63 4 . . 13 Fabricators 38 | . . . . . 19 . . . . 7 . . . 12 Repair Stations 37 | . 3 . . . 14 . . . . 20 . . . . Recycling Units 47 | . 9 . . . 22 4 . . . 12 . . . . Scanalyzers 45 | . . . . . 23 . . . . 7 . 15 . . Garrison Access 20 | . . . . . 2 . . . 3 15 . . . . Terminal Hacks 77 | . 7 1 1 20 10 14 2 . 1 17 1 . . 3 Record 21 | . . . . 20 . . 1 . . . . . . . Part Schematic 5 | . . . . . 2 3 . . . . . . . . Robot Schematic 1 | . . . . . 1 . . . . . . . . . Robot Analysis 7 | . 2 . . . . 1 . . . 4 . . . . Prototype ID Bank 7 | . 2 . . . 1 2 . . . 1 . . . 1 Open Door 8 | . . 1 . . . 6 1 . . . . . . . Emergency Access Points 1 | . . . . . . . . . . . 1 . . . Terminal Index 3 | . 1 . . . 1 . . . . 1 . . . . Repair Station Index 1 | . . . . . . . . . . 1 . . . . Garrison Index 1 | . . . . . . . . . . 1 . . . . Alert Level 2 | . . . . . 1 1 . . . . . . . . Unreport Threat 9 | . . . . . 2 1 . . 1 4 . . . 1 Locate Traps 4 | . 1 . . . . . . . . 3 . . . . Recall Reinforcements 1 | . . . . . . . . . . 1 . . . . Hauler Manifests 2 | . 1 . . . 1 . . . . . . . . . Registered Prototypes 2 | . . . . . 1 . . . . 1 . . . . Zone Layout 1 | . . . . . . . . . . . . . . 1 Proto ID Catalog 1 | . . . 1 . . . . . . . . . . . Fabricator Hacks 10 | . . . . . 3 . . . . 2 . . . 5 Network Status 3 | . . . . . 1 . . . . 1 . . . 1 Load Schematic 2 | . . . . . . . . . . . . . . 2 Build 5 | . . . . . 2 . . . . 1 . . . 2 Repair Station Hacks 31 | . 2 . . . 11 . . . . 18 . . . . Scan Component 16 | . 1 . . . 6 . . . . 9 . . . . Repair 15 | . 1 . . . 5 . . . . 9 . . . . Recycling Unit Hacks 12 | . 2 . . . . 1 . . . 9 . . . . Recycle Component 4 | . . . . . . . . . . 4 . . . . Process 1 | . . . . . . . . . . 1 . . . . Retrieve Matter 1 | . . . . . . . . . . 1 . . . . Retrieve Components 6 | . 2 . . . . 1 . . . 3 . . . . Scanalyzer 29 | . . . . . 18 . . . . 5 . 6 . . Insert Component 11 | . . . . . 6 . . . . 2 . 3 . . Analyze 13 | . . . . . 8 . . . . 3 . 2 . . Retrieve Study 5 | . . . . . 4 . . . . . . 1 . . Garrison Access Hacks 4 | . . . . . 1 . . . . 3 . . . . Unlock Access 1 | . . . . . . . . . . 1 . . . . Seal Access 3 | . . . . . 1 . . . . 2 . . . . Unauthorized Hacks 101 | . 18 . . . 30 18 . . 1 28 . . . 6 Terminals 72 | . 13 . . . 20 17 . . . 17 . . . 5 Track 13 | . 3 . . . 3 3 . . . 4 . . . . Assimilate 4 | . 1 . . . 1 1 . . . 1 . . . . Botnet 18 | . 3 . . . 4 4 . . . 5 . . . 2 Disrupt 2 | . . . . . . 2 . . . . . . . . Operators 5 | . 1 . . . 1 1 . . . 1 . . . 1 Skim 30 | . 5 . . . 11 6 . . . 6 . . . 2 Fabricators 8 | . . . . . 6 . . . . 1 . . . 1 Report 1 | . . . . . 1 . . . . . . . . . Liberate 2 | . . . . . 2 . . . . . . . . . Fabnet 2 | . . . . . 2 . . . . . . . . . Haulers 2 | . . . . . 1 . . . . 1 . . . . Recompile 1 | . . . . . . . . . . . . . . 1 Repair Stations . | . . . . . . . . . . . . . . . Recycling Units 13 | . 5 . . . 4 1 . . . 3 . . . . Reject 2 | . 2 . . . . . . . . . . . . . Mask 1 | . 1 . . . . . . . . . . . . . Tunnel 2 | . 2 . . . . . . . . . . . . . Fedlink 7 | . . . . . 4 1 . . . 2 . . . . Scrapoids 1 | . . . . . . . . . . 1 . . . . Scanalyzers . | . . . . . . . . . . . . . . . Garrison Access 8 | . . . . . . . . . 1 7 . . . . Broadcast 1 | . . . . . . . . . . 1 . . . . Restock 1 | . . . . . . . . . . 1 . . . . Decoy 1 | . . . . . . . . . . 1 . . . . Redirect 1 | . . . . . . . . . . 1 . . . . Reprogram 1 | . . . . . . . . . . 1 . . . . Intercept 1 | . . . . . . . . . . 1 . . . . Watchers 1 | . . . . . . . . . . 1 . . . . Jam 1 | . . . . . . . . . 1 . . . . . Data Cores Recovered 1 | . . . . . . . . . 1 . . . . . Used . | . . . . . . . . . . . . . . . Hacking Detections 74 | . 10 . . . 29 14 1 . 3 12 . 1 . 4 Full Trace Events 6 | . 1 . . . 4 1 . . . . . . . . Feedback Events . | . . . . . . . . . . . . . . . Feedback Blocked . | . . . . . . . . . . . . . . . Robot Schematics Acquired 1 | . . . . . 1 . . . . . . . . . Robots Built 6 | . . . . . 2 . . . . 3 . . . 1 Authchips . | . . . . . . . . . . . . . . . Time 253 | . . . . . 76 . . . . 84 . . . 93 Total Robot Build Rating 35 | . . . . . 10 . . . . 18 . . . 7 Part Schematics Acquired 15 | . . . . . 8 3 . . . 2 . 2 . . Parts Built 3 | . . . . . 2 . . . . . . . . 1 Authchips . | . . . . . . . . . . . . . . . Time 159 | . . . . . 95 . . . . . . . . 64 Total Part Build Rating 18 | . . . . . 10 . . . . . . . . 8 Part Studies Acquired 5 | . . . . . 4 . . . . . . 1 . . Parts Repaired 15 | . 1 . . . 5 . . . . 9 . . . . Time 1072 | . 26 . . . 149 . . . . 897 . . . . Parts Recycled 4 | . . . . . . . . . . 4 . . . . Recycled Matter 300 | . . . . . . . . . . 300 . . . . Retrieved Matter 300 | . . . . . . . . . . 300 . . . . Retrieved Components 26 | . 14 . . . . 2 . . . 10 . . . . Parts Scanalyzed 11 | . . . . . 6 . . . . 2 . 3 . . Part Schematics Acquired 10 | . . . . . 6 . . . . 2 . 2 . . Parts Damaged . | . . . . . . . . . . . . . . . Bothacking | -11 -10 -10 -10 -9 -6 -6 -6 -6 -6 -5 -5 -4 -4 -4 ------------ Run | Yrd Mat Min Sub Scr Fac Ext Cet Arc Hub Fac Gar Fac Was Fac Used RIF Installer 1 | . . . . . . . . . . . 1 . . . Robots Hacked 8 | . . . . . . . . . . 5 3 . . . Non-combat . | . . . . . . . . . . . . . . . Combat 8 | . . . . . . . . . . 5 3 . . . Robot Hacks Applied 1 | . . . . . . . . . . . 1 . . . formatsys_high 1 | . . . . . . . . . . . 1 . . . Relay Couplers Released 12 | . . . . . . . . . . 1 11 . . . Machine Destruction 12 | . . . . . . . . . . 1 11 . . . Attached 3 | . . . . . . . . . . . 1 . 2 . Fabnet Peak Effective % 6 | . . . . . . . . . . 6 6 2 2 2 Autooverrided 7 | . . . . . . . . . . 5 2 . . . Robots Rewired 14 | . . . . . . 13 . . . . 1 . . . Allies Hacked . | . . . . . . . . . . . . . . . Hacks Repelled . | . . . . . . . . . . . . . . . Allies | -11 -10 -10 -10 -9 -6 -6 -6 -6 -6 -5 -5 -4 -4 -4 -------- Run | Yrd Mat Min Sub Scr Fac Ext Cet Arc Hub Fac Gar Fac Was Fac Total Allies 54 | . 1 . . . 6 21 6 . . 14 4 . 1 1 Largest Group 14 | . 1 1 1 1 3 12 14 10 8 7 2 1 2 1 Highest-Rated Group 897 | . 10 10 10 10 92 439 897 793 622 419 103 49 95 93 Highest-Rated Ally 159 | . 10 10 10 10 41 159 150 143 103 103 54 49 49 93 Total Orders 60 | . 1 2 1 4 7 . 7 2 8 25 3 . . . STAY 37 | . 1 1 1 2 4 . 6 2 6 12 2 . . . FOLLOW 23 | . . 1 . 2 3 . 1 . 2 13 1 . . . Ally Attacks 476 | . . . . . 19 145 48 13 44 161 29 . 17 . Total Damage 11534 | . . . . . 363 2685 863 533 2113 3841 601 . 535 . Kills 75 | . . . . . . 20 5 4 16 25 5 . . . Allies Corrupted 1 | . . . . . . . . . . 1 . . . . Allies Melted 1 | . . . . . . . . . . 1 . . . . Intel | -11 -10 -10 -10 -9 -6 -6 -6 -6 -6 -5 -5 -4 -4 -4 ------- Run | Yrd Mat Min Sub Scr Fac Ext Cet Arc Hub Fac Gar Fac Was Fac Active Infowar (turns) 13779 | 28 1719 1064 1046 . 3524 450 597 . 730 3750 7 163 74 627 Sensors 7314 | . . 2 . . 3523 297 596 . . 2382 7 163 74 270 Terrain 3855 | 28 1719 1062 1046 . . . . . . . . . . . Structural 3775 | . . . . . 1 153 . . 730 2656 . 162 73 . Jamming 628 | . . . . . . . 1 . . . . . . 627 Robot Analysis Total 7 | . 2 . . . . 1 . . . 4 . . . . Derelict Logs Recovered 8 | . . 2 1 5 . . . . . . . . . . Drone Launches . | . . . . . . . . . . . . . . . Drone Recoveries . | . . . . . . . . . . . . . . . Exploration | -11 -10 -10 -10 -9 -6 -6 -6 -6 -6 -5 -5 -4 -4 -4 ------------- Run | Yrd Mat Min Sub Scr Fac Ext Cet Arc Hub Fac Gar Fac Was Fac Turns Passed 29489 | 113 1719 1190 3916 3272 4167 2294 844 2484 1125 3915 3116 163 234 937 Spaces Moved 12224 | 72 915 728 1875 1999 1725 898 301 415 421 1178 1119 72 140 366 Core 61 | 14 . . . . . . . . . . . . 47 . Treads 3617 | . . . . . . . 45 415 421 1178 1119 72 17 350 Legs 684 | 58 626 . . . . . . . . . . . . . Wheels 7770 | . 289 728 1875 1999 1725 898 256 . . . . . . . Hover 92 | . . . . . . . . . . . . . 76 16 Flight . | . . . . . . . . . . . . . . . Fastest Speed 50 | 50 120 140 95 110 175 160 205 240 240 160 160 225 50 145 Average Speed 189 | 106 150 146 156 162 192 221 225 240 240 238 232 225 130 198 Slowest Speed 280 | 120 260 155 170 170 215 235 280 240 240 240 240 225 225 225 Overloaded Moves . | . . . . . . . . . . . . . . . Propulsion Burnouts . | . . . . . . . . . . . . . . . Robots Hopped . | . . . . . . . . . . . . . . . Potential Cave-ins 11 | . 3 . . . 3 . . . . 3 . . 2 . Cave-ins Triggered . | . . . . . . . . . . . . . . . Exploration Rate (%) 62 | 3 99 99 69 91 43 93 78 97 55 32 89 4 79 9 Regions Visited 14 Branch Regions 7 Pre-discovered Areas 15 | . 2 2 . 4 6 1 . . . . . . . . Known Exits Taken 7 | . 1 . . . 1 1 1 1 1 1 . . . . Unknown Exits Taken 4 | 1 . 1 1 1 . . . . . . . . . . Scrap Searched 18 | . . 1 14 3 . . . . . . . . . . Spaces Dug 81 | . 8 . 2 . 32 . . . 2 33 4 . . . Terrain Destroyed 983 | . 12 16 17 . 47 57 2 9 327 331 51 . 61 53 Melee 18 | . 5 . 2 . 9 . . . . 2 . . . . Projectile 186 | . 3 . . . 38 19 2 9 11 88 8 . . 8 AOE 779 | . 4 16 15 . . 38 . . 316 241 43 . 61 45 Terrain Rammed . | . . . . . . . . . . . . . . . Walls Destroyed . | . . . . . . . . . . . . . . . Machines Disabled . | . . . . . . . . . . . . . . . Actions | -11 -10 -10 -10 -9 -6 -6 -6 -6 -6 -5 -5 -4 -4 -4 --------- Run | Yrd Mat Min Sub Scr Fac Ext Cet Arc Hub Fac Gar Fac Was Fac Total 17462 | 99 1164 810 2778 2036 2389 1099 442 1819 507 2108 1440 75 176 520 Wait 3689 | 8 159 35 784 . 412 36 58 1310 30 698 88 . 1 70 Move 12212 | 71 914 727 1874 1998 1724 897 300 414 420 1178 1118 72 139 366 Hop . | . . . . . . . . . . . . . . . Pick Up 271 | 9 15 11 39 17 39 24 24 2 5 37 24 1 5 19 Fast Attach 69 | 5 2 . 1 . 7 2 7 5 3 9 14 . 6 8 Attach 88 | 2 3 3 3 1 22 6 4 . 3 22 6 2 7 4 Detach 17 | . 2 . . . 4 1 . . 1 5 . . 3 1 Swap 185 | 1 9 11 12 3 48 14 6 3 15 31 24 . 1 7 Drop 187 | . 11 2 21 17 27 8 28 5 8 17 29 . 3 11 Fire 639 | 3 41 20 42 . 92 55 15 80 18 103 125 . 11 34 Melee 25 | . 8 . 2 . 13 . . . . 2 . . . . Ram . | . . . . . . . . . . . . . . . Kick . | . . . . . . . . . . . . . . . Crush 2 | . . . . . 1 . . . . 1 . . . . Escape Stasis 16 | . . . . . . . . . 4 2 10 . . . Rewire 62 | . . 1 . . . 56 . . . 3 2 . . . Trap . | . . . . . . . . . . . . . . . Miscellaneous . | . . . . . . . . . . . . . . . Route ------- -11/Scrapyard -10/Materials (discovered 5 exits: *Mat x3 / *Min / *Sub) -10/Mines (discovered 4 exits: *Mat x2 / [*Exi] / *Sub) -10/Subcaves (discovered 2 exits: [*Mat] / *Scr) -9/Scraptown (discovered 2 exits: *Fac x2) -6/Factory (discovered 3 exits: Low x2 / *Ext) -6/Extension (discovered 3 exits: *Fac x2 / *Cet) -6/Cetus (discovered 2 exits: *Fac / *Arc) -6/Archives (discovered 3 exits: *Fac / *Hub x2) -6/Hub_04(d) (discovered 2 exits: *Fac x2) -5/Factory (discovered 7 exits: *Fac x4 / *Upp x2 / Gar) -5/Garrison (discovered 3 exits: *Fac x3) -4/Factory (discovered 2 exits: Res x2) -4/Waste -4/Factory History --------- Turn | Location | Event 8 | -11/Scrapyard | Discovered new exit (range 15) 114 | -11/Scrapyard | Entered Materials 314 | -10/Materials | Build established: Mutant 405 | -10/Materials | Discovered new exit (range 11) 458 | -10/Materials | Repaired EM Pulse Gun 697 | -10/Materials | Central database locked down 742 | -10/Materials | Loaded intel: 8 terminal locations 776 | -10/Materials | Identified exit to Materials 784 | -10/Materials | Discovered exit to Materials (range 8) 799 | -10/Materials | Learned 4 Recycling zone layouts 814 | -10/Materials | Identified exit to Mines 818 | -10/Materials | Learned 2 Mines zone layouts 820 | -10/Materials | Learned location of 1 exit from Recycling 843 | -10/Materials | Loaded intel: 24 non-interactive machine locations 1103 | -10/Materials | Discovered new exit (range 10) 1833 | -10/Materials | Entered Mines 1833 | -10/Mines | Accompanied by 1 ally 2034 | -10/Mines | Learned location of Mines (-9) 2080 | -10/Mines | Discovered exit to Materials (range 6) 2127 | -10/Mines | Met a Derelict shopkeep closing up shop 2351 | -10/Mines | Deemed a non-threat by the Exiles lab entrance 2351 | -10/Mines | Discovered new exit (range 5) 2407 | -10/Mines | Learned location of Storage (-9) 2443 | -10/Mines | Discovered exit to Materials (range 7) 2450 | -10/Mines | Received a Rocket Launcher from a helpful Derelict 2495 | -10/Mines | Excavation squad dispatched 2495 | -10/Mines | A large section of the Mines collapsed 2524 | -10/Mines | Core integrity fell below 50% 2652 | -10/Mines | Found a damaged Exp. Sensor Array with a note attached 2654 | -10/Mines | Found Prototype Device 2655 | -10/Mines | Identified Exp. Sensor Array 3014 | -10/Mines | Discovered new exit (range 6) 3023 | -10/Mines | Entered Subcaves 3023 | -10/Subcaves | Accompanied by 1 ally 3024 | -10/Subcaves | Approached by a straggling Scientist 3203 | -10/Subcaves | Scientist uncovered a shortcut to Scraptown 3426 | -10/Subcaves | Learned 2 Materials zone layouts 4128 | -10/Subcaves | Discovered new exit (range 7) 4422 | -10/Subcaves | Core integrity fell below 20% 4754 | -10/Subcaves | A swath of the cavern ceiling suddenly collapsed 5829 | -10/Subcaves | Visited 4L-MR0's lab 5915 | -10/Subcaves | Found Power Bank 6939 | -10/Subcaves | Entered Scraptown 6939 | -9/Scraptown | Accompanied by 1 ally 7249 | -9/Scraptown | Scanned Subdweller tech in exchange for log data 7256 | -9/Scraptown | Learned Research interactive machine intel 7258 | -9/Scraptown | Learned Factory trap positions 7260 | -9/Scraptown | Learned Research security intel 7261 | -9/Scraptown | Learned location of Warlord (-5) 7263 | -9/Scraptown | Learned location of 1 exit from Research 7406 | -9/Scraptown | Discovered new exit (range 5) 7515 | -9/Scraptown | Visited Awakened 8046 | -9/Scraptown | Visited Cave Peace 8071 | -9/Scraptown | Visited Spacefarers 8093 | -9/Scraptown | Visited Cyclists 8134 | -9/Scraptown | Visited Fellowship of the Rings 8163 | -9/Scraptown | Visited IN-MT5's Study 8204 | -9/Scraptown | Visited Shadow of the Wyrm 8219 | -9/Scraptown | Visited UFD Registry 8219 | -9/Scraptown | Registered with UFD as "Armorframe" 8274 | -9/Scraptown | Visited Supply Room 8326 | -9/Scraptown | Visited Junk Repository 8396 | -9/Scraptown | Visited Derelict Rescue Squad 8575 | -9/Scraptown | Visited Cartography Club 8609 | -9/Scraptown | Visited Infowarlord's Domain 8631 | -9/Scraptown | Visited Observation Area 8677 | -9/Scraptown | Delivered Scrap Shield to a Scientist 8823 | -9/Scraptown | Visited Junk Cannon Lab 8831 | -9/Scraptown | Found Prototype Special Weapon 8890 | -9/Scraptown | Visited Botcube Research 9177 | -9/Scraptown | Learned location of Armory (-4) 9177 | -9/Scraptown | Learned 16 Materials zone layouts 9177 | -9/Scraptown | Learned 20 Factory zone layouts 9177 | -9/Scraptown | Learned 24 Factory zone layouts 9177 | -9/Scraptown | Learned 4 Access zone layouts 9177 | -9/Scraptown | Learned 4 Mines zone layouts 9177 | -9/Scraptown | Learned 8 Lower Caves zone layouts 9177 | -9/Scraptown | Learned 12 Lower Caves zone layouts 9177 | -9/Scraptown | Learned 12 Proximity Caves zone layouts 9177 | -9/Scraptown | Learned Storage emergency access door positions 9177 | -9/Scraptown | Learned location of 1 exit from Research 9177 | -9/Scraptown | Learned location of 1 exit from Lower Caves 9177 | -9/Scraptown | Learned location of 2 exits from Lower Caves 9240 | -9/Scraptown | Found Deep Structural Scanner 9325 | -9/Scraptown | Discovered new exit (range 5) 9340 | -9/Scraptown | Identified Junk Cannon 9421 | -9/Scraptown | Found Exp. Signal Interpreter 9491 | -9/Scraptown | Found Botcube 9587 | -9/Scraptown | Found DRS Beacon 9931 | -9/Scraptown | Entered Cyclist Reading Room 10119 | -9/Scraptown | Met Optimus 10119 | -9/Scraptown | Accepted into 0bPrime 10211 | -9/Scraptown | Entered Factory 10211 | -6/Factory | Accompanied by 1 ally 10211 | -6/Factory | Evolved 8 slots: Utility x7, Weapon x1 10212 | -6/Factory | Identified exit to Lower Caves 10213 | -6/Factory | Identified exit to Extension 10214 | -6/Factory | Loaded intel: 74 trap records 10578 | -6/Factory | Repaired Imp. Cooling System 10582 | -6/Factory | Fabricated H-66 Slayer? 10615 | -6/Factory | Loaded intel: 8 recycling unit locations 10943 | -6/Factory | Learned location of Protoforge (-2) 11005 | -6/Factory | Build established: Tank 11062 | -6/Factory | Repaired Lgt. Humpback 11132 | -6/Factory | Cargo convoy interrupted 11689 | -6/Factory | Learned location of Extension (-6) 11735 | -6/Factory | Learned location of 2 exits from Proximity Caves 11771 | -6/Factory | Learned Hub_04(d) stockpile data 11797 | -6/Factory | Learned location of Upper Caves (-4) 11815 | -6/Factory | Learned Extension stockpile data 11825 | -6/Factory | Learned 4 Upper Caves zone layouts 11926 | -6/Factory | Learned 2 Lower Caves zone layouts 12026 | -6/Factory | Central database locked down 12417 | -6/Factory | Fabricated Imp. Cryofiber Web (x2) 13548 | -6/Factory | Build established: Mutant 13568 | -6/Factory | Learned location of 1 exit from Upper Caves 13606 | -6/Factory | Learned 2 Lower Caves zone layouts 13632 | -6/Factory | Learned 4 Lower Caves zone layouts 13646 | -6/Factory | Learned Extension trap positions 13668 | -6/Factory | Learned Extension stockpile data 13695 | -6/Factory | Learned location of 2 exits from Upper Caves 13950 | -6/Factory | Build established: Tank 14061 | -6/Factory | First assault squad dispatched 14199 | -6/Factory | Repaired Med. Insulated Plating 14239 | -6/Factory | Repaired Hrd. Medium Armor Plating 14272 | -6/Factory | Repaired Spk. Treads 14328 | -6/Factory | Lost 3 allies 14378 | -6/Factory | Entered Extension 14379 | -6/Extension | Identified exit to Factory 14380 | -6/Extension | Loaded intel: 26 trap records 14502 | -6/Extension | Rescued a captive Derelict 14503 | -6/Extension | Rescued a captive Derelict 14709 | -6/Extension | Central database locked down 15054 | -6/Extension | Rescued a captive Derelict 15302 | -6/Extension | Build established: Commander-Tank 15543 | -6/Extension | Spotted B-75 Beast 15552 | -6/Extension | Destroyed B-75 Beast 15578 | -6/Extension | Spotted B-75 Beast 15596 | -6/Extension | Allies destroyed B-75 Beast 15634 | -6/Extension | Lost 5 allies 15713 | -6/Extension | Rescued A7 15754 | -6/Extension | Rescued a captive Derelict 15865 | -6/Extension | Build established: Tank 15890 | -6/Extension | Rescued a captive Derelict 15891 | -6/Extension | Rescued a captive Derelict 16119 | -6/Extension | Learned location of 2 exits from Factory 16157 | -6/Extension | Loaded intel: 2 recycling unit locations 16175 | -6/Extension | Learned location of 2 exits from Archives 16185 | -6/Extension | Learned Extension trap positions 16191 | -6/Extension | Identified exit to Cetus 16274 | -6/Extension | Build established: Commander-Tank 16300 | -6/Extension | Rescued a captive Derelict 16672 | -6/Extension | Entered Cetus 16672 | -6/Cetus | Accompanied by 12 allies (A7) 16677 | -6/Cetus | Acquired a Cetus Manufacturing Module code from A7 16688 | -6/Cetus | Spotted Cetus Guard 16688 | -6/Cetus | Spotted Cetus Guard 16690 | -6/Cetus | Spotted Cetus Guard 16691 | -6/Cetus | Spotted Cetus Guard 16693 | -6/Cetus | Allies destroyed Cetus Guard 16704 | -6/Cetus | Destroyed Cetus Guard 16708 | -6/Cetus | Destroyed Cetus Guard 16718 | -6/Cetus | Destroyed Cetus Guard 16741 | -6/Cetus | Lost 4 allies 16913 | -6/Cetus | Botcube activated 16933 | -6/Cetus | Botcube completed mutation into treaded form, armed with 2 guns. 17085 | -6/Cetus | Started Cetus Manufacturing Module 17099 | -6/Cetus | Escorted A7 to Cetus Mainframe 17110 | -6/Cetus | Manufactured an Enhanced Grunt 17122 | -6/Cetus | Discovered new exit (range 15) 17135 | -6/Cetus | Manufactured an Enhanced Grunt 17160 | -6/Cetus | Manufactured an Enhanced Grunt 17185 | -6/Cetus | Manufactured an Enhanced Grunt 17210 | -6/Cetus | Manufactured an Enhanced Grunt 17267 | -6/Cetus | Spotted Cetus Guard 17267 | -6/Cetus | Spotted Cetus Guard 17271 | -6/Cetus | Spotted Cetus Guard 17276 | -6/Cetus | Spotted Cetus Guard 17296 | -6/Cetus | Allies destroyed Cetus Guard 17297 | -6/Cetus | Destroyed Cetus Guard 17298 | -6/Cetus | Destroyed Cetus Guard 17299 | -6/Cetus | Allies destroyed Cetus Guard 17303 | -6/Cetus | Discovered exit to Factory (range 15) 17326 | -6/Cetus | Lost 4 allies 17332 | -6/Cetus | Met Revision 17 17334 | -6/Cetus | Attached Power Bank, gained temporary slots: Power x3 17335 | -6/Cetus | System corruption reached 10% 17422 | -6/Cetus | Security sweep announced 17506 | -6/Cetus | Identified exit to Archives 17516 | -6/Cetus | Entered Archives 17516 | -6/Archives | Accompanied by 10 allies (A7) 17517 | -6/Archives | Identified exit to Hub_04(d) 17521 | -6/Archives | Received a hacking code to weaken MAIN.C 18170 | -6/Archives | Discovered exit to Factory (range 14) 18239 | -6/Archives | Unable to access archive contents 18573 | -6/Archives | Build established: Scavenger-Tank 20000 | -6/Archives | Entered Hub_04(d) 20000 | -6/Hub_04(d) | Accompanied by 8 allies 20130 | -6/Hub_04(d) | Discovered exit to Factory (range 15) 20650 | -6/Hub_04(d) | Discovered exit to Factory (range 18) 20910 | -6/Hub_04(d) | Found Prototype Device 20911 | -6/Hub_04(d) | Identified Exp. Thermal Shield 21094 | -6/Hub_04(d) | Network Hub disabled 21094 | -6/Hub_04(d) | Network Hub disabled 21119 | -6/Hub_04(d) | System corruption reached 30% 21125 | -6/Hub_04(d) | Entered Factory 21125 | -5/Factory | Accompanied by 3 allies 21125 | -5/Factory | Evolved 2 slots: Utility x2 21126 | -5/Factory | Identified exit to Upper Caves 21127 | -5/Factory | Identified exit to Factory 21235 | -5/Factory | Fabricated B-60 Warrior? 21593 | -5/Factory | Loaded intel: 8 recycling unit locations 22206 | -5/Factory | Repaired Adv. Coolant Injector 22310 | -5/Factory | Unchained authorized (QV-33N) 22385 | -5/Factory | Repaired Broken Exp. Sensor Array 22494 | -5/Factory | Repaired Centrium Medium Armor Plating 22603 | -5/Factory | Repaired Corrupted Quantum Reactor 22712 | -5/Factory | Repaired Centrium Medium Armor Plating 22823 | -5/Factory | Repaired Adv. Variable Charge Gun 23131 | -5/Factory | Central database locked down 23155 | -5/Factory | Learned Research stockpile data 23235 | -5/Factory | Learned Quarantine trap positions 23273 | -5/Factory | Learned 4 Research zone layouts 23825 | -5/Factory | First assault squad dispatched 24333 | -5/Factory | Lost 4 parts (1p1n2w) 24343 | -5/Factory | Repaired Quantum Reactor 24444 | -5/Factory | Scrapoids reinforcements arrived? 24455 | -5/Factory | Repaired Centrium Medium Armor Plating? 24637 | -5/Factory | Repaired Adv. KE Penetrator? 24676 | -5/Factory | Found Prototype Launcher 24676 | -5/Factory | Identified Mni. Smartbomb Launcher 24680 | -5/Factory | Found Mni. Smartbomb Launcher 24684 | -5/Factory | Found Mni. Smartbomb Launcher 24948 | -5/Factory | Garrison activated, responded to threat 24951 | -5/Factory | P-70 Sage assimilated allied 05F05-D 24987 | -5/Factory | Spotted B-75 Beast 25039 | -5/Factory | Identified exit to Garrison 25040 | -5/Factory | Entered Garrison 25160 | -5/Garrison | Triggered checkpoint 25202 | -5/Garrison | Garrison Relay disabled 25456 | -5/Garrison | Triggered checkpoint 25470 | -5/Garrison | Triggered checkpoint 25483 | -5/Garrison | Core integrity fell below 50% 25516 | -5/Garrison | Triggered checkpoint 25620 | -5/Garrison | Spotted B-86 Titan 25710 | -5/Garrison | Garrison Relay disabled 25774 | -5/Garrison | Discovered exit to Factory (range 13) 26243 | -5/Garrison | Discovered exit to Factory (range 10) 26264 | -5/Garrison | Triggered checkpoint 26305 | -5/Garrison | Garrison Relay disabled 26843 | -5/Garrison | Discovered exit to Factory (range 10) 27527 | -5/Garrison | Installed Relay Interface Framework 27990 | -5/Garrison | Triggered checkpoint 28156 | -5/Garrison | Entered Factory 28156 | -4/Factory | Accompanied by 1 ally 28156 | -4/Factory | Evolved 2 slots: Utility x2 28157 | -4/Factory | Identified exit to Research 28319 | -4/Factory | Sucked down chute 28319 | -4/Factory | Entered Waste 28320 | -4/Waste | Met a frightened Derelict 28324 | -4/Waste | 1 allies followed down the chute 28343 | -4/Waste | Spotted C-40 Crusher 28344 | -4/Waste | Spotted C-40 Crusher 28350 | -4/Waste | Spotted C-40 Crusher 28351 | -4/Waste | Destroyed C-40 Crusher 28352 | -4/Waste | Spotted C-40 Crusher 28355 | -4/Waste | Destroyed C-40 Crusher 28382 | -4/Waste | Build established: Bothacker-Tank 28383 | -4/Waste | Crushed by Compactor (1 part destroyed, 1 dropped) 28384 | -4/Waste | Crushed by Compactor (1 part destroyed) 28386 | -4/Waste | Crushed by Compactor (1 part destroyed, 1 dropped) 28387 | -4/Waste | Crushed by Compactor (0 parts destroyed, 1 dropped) 28389 | -4/Waste | Crushed by Compactor (0 parts destroyed, 2 dropped) 28390 | -4/Waste | Crushed by Compactor (1 part destroyed) 28392 | -4/Waste | Crushed by Compactor (1 part destroyed, 2 dropped) 28398 | -4/Waste | Crushed by Compactor (1 part destroyed) 28429 | -4/Waste | Lost 7 parts (1p3u3w) 28454 | -4/Waste | Spotted C-40 Crusher 28498 | -4/Waste | Spotted C-40 Crusher 28535 | -4/Waste | Discovered new exit (range 12) 28551 | -4/Waste | Identified exit to Factory 28553 | -4/Waste | Entered Factory 28717 | -4/Factory | Unchained authorized (QV-33N) 28805 | -4/Factory | Fabricated Gamma Bomb Array (x1) 29059 | -4/Factory | Build established: Gunner 29263 | -4/Factory | Fabricated A-27 Freighter? 29490 | -4/Factory | Self-destructed Last Messages --------------- 29481_ Destroyed Terrain Scanner. 29481_ U-05 Engineer destroyed. 29482_ Imp. Heavy Armor Plating destroyed. 29482_ Adv. Transmission Jammer destroyed. 29483_ K-01 Serf collects debris. 29484_ Adv. Heavy Treads destroyed. 29486_ Energy bleed averted by Adv. Cryofiber Web. Thermal Drone disintegrates. 29487_ Power failure averted by Adv. Cryofiber Web. 29487_ Overheating: Lrg. Storage Unit damaged (-204). 29487_ Internal heat damage averted by Adv. Cryofiber Web. Kinetic Drone disintegrates. 29487_ ALERT: Potential suspicious activity detected, Programmers report to Factory Zone 7E. 29488_ Hardcell Cannon destroyed. 29489_ Power failure averted by Adv. Cryofiber Web. 29490_ Antimatter Reactor destroyed. Map ----- +----------------------------------------------------+ | ?????????????????????????????????????????????????? | | ?????????????????????????????????????????????????? | | ?????????????????????????????????????????????????? | | ?????????????????????????????????????????????????? | | ?????????????????????????????????????????????????? | | ?????????????????????????????????????????????????? | | ?????????????????????????????????????????????????? | | ?????????????????????????????????????????????????? | | ?????????????????????????????????????????????????? | | ?????????????????????????????????????????????????? | | ?????????????????????????????????????????????????? | | ?????????????????????????????????????????????????? | | ????????????????????????#########????????????????? | | ???????????????????????# ??????????????? | | ???????????????????????# #????????????? | | ???????????????????????# #????????????? | | ???????????????????????# # ???????????? | | ???????????????????????# ???????????? | | ???????????????????????# ??????????? | | ???????????????????????#% ??????????? | | ??????????????????????## n ??????????? | | ???###########????????# ?????????? | | ???# #??????### = ?????????? | | ???# ! #??????# # ????????? | | ???# #??????# [ R ????????? | | ???# #######??# @ # !% ????????? | | ???# # #??## ????????? | | ???# # ! ####= ????????? | | ???# + %%! n ????????? | | ???# [ # #######;#### ####;##+?????????? | | ############## #?????? ????#????????????????? | | ## #??## ##??????" ?????????????????????? | | # ##### #???????" ????????????????????? | | # #???????" ????????????????????? | | # #???????" ????????????????????? | | # """ ] #???????? #???????????????????? | | # "F" ##???????? #???????????????????? | | # " #?????????? A???????????????????? | | # """ #?????????? #???????????????????? | | # """ #???????????#???????????????????? | | # #???????????????????????????????? | | # """""" #???????????????????????????????? | | # """""" #???????????????????????????????? | | # """""" #???????????????????????????????? | | # %"""""" #???????????????????????????????? | | # #???????????????????????????????? | | "# % "" #???????????????????????????????? | | ## " """ ??????????????????????????? | | #% """"" ?????????????????????????? | | # """"" ?????????????????????????? | +----------------------------------------------------+ Best States ------------- Heat Dissipation 81 Coolant Potential 100 Energy Generation 59 Energy Capacity 815 Matter Stores 300 Matter Capacity 300 Sight Range 16 Robot Scan Range 20 Terrain Scan Range 16 Terrain Scan Density 10 Jamming Range 16 Base Temperature (-) 200 Corruption Block 7 Armor Coverage 1200 Resistance: KI 30 Resistance: TH 30 Resistance: EM 20 Phase Shifting 5 Evasion (%) 55 Target Analysis 8 Core Analysis 9 Armor Integrity Analysis 40 Recoil Reduction 2 Kinecelleration 40 Offensive Hacking 24 Defensive Hacking 12 Relay Coupler Types 2 Relay Coupler Value 53 Authchip Count 1 Item Schematics ----------------- Hvy. Plasma Cannon | -6/Factory | Hacked Exp. Signal Interpreter | -6/Factory | Scanalyzed Neutrino Core | -6/Factory | Scanalyzed Hcp. Storage Unit | -6/Factory | Scanalyzed Imp. Heavy Armor Plating | -6/Factory | Scanalyzed Corruption Screen | -6/Factory | Scanalyzed Exp. Sensor Array | -6/Factory | Scanalyzed Adv. System Shield | -6/Factory | Hacked Imp. Thermal Shield | -6/Extension | Hacked Imp. Transmission Jammer | -6/Extension | Hacked Lrn. Proton Cannon | -6/Extension | Hacked Centrium Heavy Treads | -5/Factory | Scanalyzed Exp. Thermal Shield | -5/Factory | Scanalyzed Adv. KE Penetrator | -4/Factory | Scanalyzed Mni. Smartbomb Launcher | -4/Factory | Scanalyzed Robot Schematics ------------------ B-48 Gladiator | -6/Factory | Hacked Fabricated ------------ H-66 Slayer | x2 | -6/Factory | Preloaded Imp. Cryofiber Web | x2 | -6/Factory | Preloaded B-60 Warrior | x3 | -5/Factory | Preloaded Gamma Bomb Array | x1 | -4/Factory | Preloaded A-27 Freighter | x1 | -4/Factory | Preloaded Repaired ---------- EM Pulse Gun | 31% | -10/Materials Imp. Cooling System | 38% | -6/Factory Lgt. Humpback | 13% | -6/Factory Med. Insulated Plating | 15% | -6/Factory Hrd. Medium Armor Plating | 31% | -6/Factory Spk. Treads | 14% | -6/Factory Adv. Coolant Injector | 20% | -5/Factory Exp. Sensor Array | 62% | -5/Factory | Broken Centrium Medium Armor Plating | 75% | -5/Factory Quantum Reactor | 77% | -5/Factory | Corrupted Centrium Medium Armor Plating | 79% | -5/Factory Adv. Variable Charge Gun | 70% | -5/Factory Quantum Reactor | 9% | -5/Factory Centrium Medium Armor Plating | 14% | -5/Factory Adv. KE Penetrator | 2% | -5/Factory Studied --------- Hpw. Shock Rifle | -6/Factory | Hacked Imp. Medium Treads | -6/Factory | Hacked Wheel | -6/Factory | Hacked Phase Cannon | -6/Factory | Hacked Quantum Rifle | -4/Factory | Hacked Alien Tech Used ----------------- None Achievements -------------- Join The Dark Side May I Have Another? Mindtrick Physics Hates This One Trick Challenges ------------ None Game ------ Seed CoordinationShieldUnit Manual? 0 Play Time 04:14:48 Cumulative 869.7 hours Start 2025.12.17 @ 11:50:14 End 2025.12.18 @ 13:24:14 Sessions 1 Manual Loads 0 Difficulty Rogue Special Mode None Game No. 556 Rogue 556 Adventurer 0 Explorer 0 Win Type - Total 1 Types 1/0/0/0/0/0/0/0/0/0 Lore% 80 Gallery% 72 Achievement% 53 Wizard Run 0 Options --------- Layout 1 ASCII 0 Keyboard 0 Movement Mouse Keybinds 0 Fullscreen 1 Font 20/SmallcapsGlow Map View 54x42 Zoom Use 0% Tactical HUD 1 Map Filters NONE Filters NONE Steam 1 RUN: fe798257-b253-46b3-8e55-acf9b6cecff8